fUST/lending_fUST_20250929
["ID","MTS","AMOUNT","RATE_DAILY","PERIOD"]
[388393389,1759151461667,-246.467037,0.00025943,7]
[388393390,1759151461676,-858.158994,0.00025943,7]
[388393391,1759151461687,-151.0,0.00025943,7]
[388393392,1759151461696,-858.158989,0.00025943,7]
[388393393,1759151461706,-246.467037,0.00025943,7]
[388393394,1759151461716,-548.921359,0.00025943,7]
[388393395,1759151461726,-151.0,0.00025943,7]
[388393396,1759151461736,-246.467037,0.00025943,7]
[388393397,1759151461746,-246.467035,0.00025943,7]
[388393398,1759151461755,-548.921359,0.00025943,7]
[388393399,1759151461765,-151.0,0.00025943,7]
[388393400,1759151461775,-548.921359,0.00025943,7]
[388393401,1759151461787,-151.0,0.00025943,7]
[388393402,1759151461796,-480.0,0.00025943,2]
[388393403,1759151461806,-548.92135,0.00025943,7]
[388393404,1759151461815,-228.176551,0.00025943,7]
[388393405,1759151461824,-228.176551,0.00025943,7]
[388393406,1759151461834,-483.48290089,0.00025943,2]
[388393407,1759151461844,-228.176551,0.00025943,7]
[388393408,1759151461853,-228.176546,0.00025943,7]
[388393409,1759151461863,-480.0,0.00025943,2]
[388393410,1759151461872,-480.0,0.00025943,2]
[388393411,1759151461882,-151.0,0.00025943,7]
[388393412,1759151461894,-151.0,0.00025943,7]
[388393413,1759151461904,-794.94,0.00025943,2]
[388393414,1759151461916,-164.368267,0.00025943,7]
[388393415,1759151461926,-164.368267,0.00025943,7]
[388393416,1759151461937,-164.368267,0.00025943,7]
[388393417,1759151461947,-164.368267,0.00025943,7]
[388393418,1759151461957,-480.0,0.00025943,2]
[388393419,1759151461967,-480.0,0.00025943,2]
[388393420,1759151461977,-480.0,0.00025943,2]
[388393421,1759151461987,-480.0,0.00025943,2]
[388393422,1759151461997,-772.35,0.00025943,2]
[388393423,1759151462007,-652.17,0.00025943,2]
[388393424,1759151462017,-480.0,0.00025943,2]
[388393425,1759151462027,-480.0,0.00025943,2]
[388393426,1759151462037,-584.92,0.00025943,2]
[388393427,1759151462047,-480.0,0.00025943,2]
[388393428,1759151462057,-56857.7536729,0.00025943,2]
[388393429,1759151462067,-160.0,0.00025944,7]
[388393430,1759151462077,-151.0,0.00025944,7]
[388393431,1759151462087,-151.0,0.00025944,7]
[388393432,1759151462096,-151.0,0.00025944,7]
[388393433,1759151462106,-151.0,0.00025944,7]
[388393434,1759151462116,-160.0,0.00025944,7]
[388393435,1759151462128,-151.0,0.00025944,7]
[388393436,1759151462139,-520.0,0.00025954,3]
[388393437,1759151462149,-480.0,0.00025954,2]
[388393438,1759151462159,-480.0,0.00025954,2]
[388393439,1759151462168,-480.0,0.00025954,2]
[388393440,1759151462179,-233.87608454,0.00025954,7]
[388393441,1759151462189,-151.0,0.00025954,7]
[388393442,1759151462198,-151.0,0.00025954,7]
[388393443,1759151462211,-151.0,0.00025954,7]
[388393444,1759151462222,-177.530435,0.00025954,7]
[388393445,1759151462232,-151.0,0.00025954,7]
[388393446,1759151462242,-151.0,0.00025954,7]
[388393447,1759151462252,-151.0,0.00025954,7]
[388393448,1759151462261,-151.0,0.00025954,7]
[388393449,1759151462271,-151.0,0.00025954,7]
[388393450,1759151462281,-151.0,0.00025954,7]
[388393451,1759151462292,-217.927928,0.00025954,7]
[388393452,1759151462302,-151.0,0.00025954,7]
[388393453,1759151462312,-151.0,0.00025954,7]
[388393454,1759151462322,-151.0,0.00025954,7]
[388393455,1759151462332,-181.550027,0.00025954,7]
[388393456,1759151462342,-181.550027,0.00025954,7]
[388393457,1759151462352,-181.550027,0.00025954,7]
[388393458,1759151462362,-562.293179,0.00025954,7]
[388393459,1759151462372,-562.293179,0.00025954,7]
[388393460,1759151462382,-181.550027,0.00025954,7]
[388393461,1759151462392,-562.293179,0.00025954,7]
[388393462,1759151462403,-562.29317,0.00025954,7]
[388393463,1759151462413,-151.0,0.00025954,7]
[388393464,1759151462423,-153.369212,0.00025954,7]
[388393465,1759151462433,-504.01475569,0.00025973,2]
[388393466,1759151462443,-433.08681473,0.00025973,2]
[388393467,1759151462453,-500.0,0.00025973,2]
[388393468,1759151462463,-500.0,0.00025973,2]
[388393469,1759151462472,-502.73128562,0.00025973,2]
[388393470,1759151462481,-500.0,0.00025973,2]
[388393471,1759151462491,-150.0,0.00025973,2]
[388393472,1759151462500,-150.0,0.00025973,2]
[388393473,1759151462509,-151.0,0.00025973,7]
[388393474,1759151462519,-151.0,0.00025973,7]
[388393475,1759151462530,-151.0,0.00025973,7]
[388393476,1759151462539,-151.0,0.00025973,7]
[388393477,1759151462550,-168.0,0.00025995,2]
[388393478,1759151462561,-723.82,0.00026016,2]
[388393479,1759151462572,-480.0,0.00026016,2]
[388393480,1759151462594,-480.0,0.00026016,2]
[388393481,1759151462604,-480.0,0.00026016,2]
[388393482,1759151462614,-480.0,0.0002609,2]
[388393483,1759151462624,-874.03,0.0002609,2]
[388393484,1759151462634,-480.0,0.0002609,2]
[388393485,1759151462646,-1381.37,0.0002609,2]
[388393486,1759151462657,-1165.38,0.0002609,2]
[388393487,1759151462667,-1933.86,0.0002609,2]
[388393488,1759151462677,-4117.91,0.0002609,2]
[388393489,1759151462687,-541.37,0.0002609,2]
[388393490,1759151462697,-7118.71,0.0002609,2]
[388393491,1759151462706,-480.0,0.0002609,2]
[388393492,1759151462716,-480.0,0.0002609,2]
[388393493,1759151462726,-852.71,0.0002609,2]
[388393494,1759151462736,-716.08,0.0002609,2]
[388393495,1759151462745,-480.0,0.0002609,2]
[388393496,1759151462754,-2644.42,0.0002609,2]
[388393497,1759151462762,-7090.16,0.0002609,2]
[388393498,1759151462772,-1921.73,0.0002609,2]
[388393499,1759151462783,-908.9,0.0002609,2]
[388393500,1759151462792,-794.27,0.0002609,2]
[388393501,1759151462803,-809.99,0.0002609,2]
[388393502,1759151462813,-578.83,0.0002609,2]
[388393503,1759151462823,-480.0,0.0002609,2]
[388393504,1759151462834,-151.0,0.00026103,2]
[388393505,1759151462844,-782.69,0.00026106,2]
[388393506,1759151462854,-480.0,0.00026106,2]
[388393507,1759151462864,-504.51,0.00026106,2]
[388393508,1759151462874,-480.0,0.00026106,2]
[388393509,1759151463100,-529.73,0.00026106,2]
[388393510,1759151463123,-1733.64,0.00026106,2]
[388393511,1759151463146,-4213.09,0.00026106,2]
[388393512,1759151463161,-3372.92,0.00026106,2]
[388393513,1759151463172,-1502.49,0.00026106,2]
[388393514,1759151463182,-480.0,0.00026106,2]
[388393515,1759151463193,-1733.19,0.00026106,2]
[388393516,1759151463203,-480.0,0.00026106,2]
[388393517,1759151463212,-1971.67,0.00026106,2]
[388393518,1759151463222,-536.53,0.00026106,2]
[388393519,1759151463232,-480.0,0.00026106,2]
[388393520,1759151463242,-911.13,0.00026106,2]
[388393521,1759151463251,-1142.07,0.00026106,2]
[388393522,1759151463261,-3281.81,0.00026106,2]
[388393523,1759151463271,-2317.91,0.00026106,2]
[388393524,1759151463280,-819.96,0.00026106,2]
[388393525,1759151463290,-2895.75,0.00026106,2]
[388393526,1759151463300,-1165.8,0.00026106,2]
[388393527,1759151463309,-982.98,0.00026106,2]
[388393528,1759151463318,-559.51,0.00026106,2]
[388393529,1759151463328,-480.0,0.00026106,2]
[388393530,1759151463338,-707.77,0.00026106,2]
[388393531,1759151463347,-2542.86,0.00026106,2]
[388393532,1759151463358,-2360.78,0.00026106,2]
[388393533,1759151463369,-3719.75,0.00026106,2]
[388393534,1759151463379,-952.67,0.00026106,2]
[388393535,1759151463390,-585.61,0.00026106,2]
[388393536,1759151463400,-500.0,0.00026106,2]
[388393537,1759151463409,-500.0,0.00026107,5]
[388393538,1759151463418,-807.68,0.00026107,2]
[388393539,1759151463427,-480.0,0.00026107,2]
[388393540,1759151463435,-480.0,0.00026107,2]
[388393541,1759151463444,-511.41,0.00026107,2]
[388393542,1759151463453,-480.0,0.00026107,2]
[388393543,1759151463462,-480.0,0.00026117,2]
[388393544,1759151463470,-480.0,0.00026117,2]
[388393545,1759151463479,-568.25,0.00026117,2]
[388393546,1759151463488,-480.0,0.00026117,2]
[388393547,1759151463497,-559.9479731,0.00026117,2]
[388393548,1759151463507,-402.01044459,0.00026117,2]
[388393549,1759151463516,-480.0,0.00026117,2]
[388393550,1759151463525,-480.0,0.00026117,2]
[388393551,1759151463535,-480.0,0.00026117,2]
[388393552,1759151463544,-480.0,0.00026117,2]
[388393553,1759151463553,-855.96,0.00026117,2]
[388393554,1759151463563,-480.0,0.00026117,2]
[388393555,1759151463572,-1375.03,0.00026117,2]
[388393556,1759151463581,-480.0,0.00026117,2]
[388393557,1759151463591,-832.79,0.00026117,2]
[388393558,1759151463600,-480.0,0.00026117,2]
[388393559,1759151463609,-480.0,0.00026117,2]
[388393560,1759151463617,-669.84,0.00026117,2]
[388393561,1759151463625,-480.0,0.00026117,2]
[388393562,1759151463632,-572.6,0.00026117,2]
[388393563,1759151463640,-480.0,0.00026117,2]
[388393564,1759151463647,-596.18944259,0.00026117,2]
[388393565,1759151463654,-1540.29,0.00026117,2]
[388393566,1759151463662,-769.66,0.00026117,2]
[388393567,1759151463670,-523.28,0.00026117,2]
[388393568,1759151463678,-582.35,0.00026117,2]
[388393569,1759151463686,-480.0,0.00026117,2]
[388393570,1759151463694,-480.0,0.00026117,2]
[388393571,1759151463702,-490.24,0.00026117,2]
[388393572,1759151463709,-480.0,0.00026117,2]
[388393573,1759151463719,-480.0,0.00026117,2]
[388393574,1759151463727,-480.0,0.00026117,2]
[388393575,1759151463737,-829.8,0.00026117,2]
[388393576,1759151463748,-865.38,0.00026117,2]
[388393577,1759151463758,-927.52,0.00026117,2]
[388393578,1759151463768,-787.63,0.00026117,2]
[388393579,1759151463778,-480.0,0.00026117,2]
[388393580,1759151463789,-480.0,0.00026117,2]
[388393581,1759151463801,-480.0,0.00026117,2]
[388393582,1759151463812,-480.0,0.00026117,2]
[388393583,1759151463822,-480.0,0.00026117,2]
[388393584,1759151463832,-710.28,0.00026117,2]
[388393585,1759151463842,-480.0,0.00026117,2]
[388393586,1759151463852,-658.42,0.00026117,2]
[388393587,1759151463864,-515.52691009,0.00026117,2]
[388393588,1759151463873,-480.0,0.00026117,2]
[388393589,1759151463884,-480.0,0.00026117,2]
[388393590,1759151463895,-480.0,0.00026117,2]
[388393591,1759151463905,-1971.78,0.00026117,2]
[388393592,1759151463915,-480.0,0.00026117,2]
[388393593,1759151463926,-480.0,0.00026117,2]
[388393594,1759151463935,-710.27,0.00026117,2]
[388393595,1759151463945,-786.56,0.00026117,2]
[388393596,1759151463955,-866.3,0.00026117,2]
[388393597,1759151463964,-1402.13,0.00026117,2]
[388393598,1759151463974,-1424.27,0.00026117,2]
[388393599,1759151463984,-480.0,0.00026117,2]
[388393600,1759151463994,-1417.08,0.00026117,2]
[388393601,1759151464004,-739.41,0.00026117,2]
[388393602,1759151464014,-507.22,0.00026117,2]
[388393603,1759151464024,-685.49,0.00026117,2]
[388393604,1759151464035,-734.96,0.00026117,2]
[388393605,1759151464045,-534.19,0.00026117,2]
[388393606,1759151464055,-1816.34,0.00026117,2]
[388393607,1759151464064,-793.97,0.00026117,2]
[388393608,1759151464074,-506.1,0.00026117,2]
[388393609,1759151464083,-480.0,0.00026117,2]
[388393610,1759151464095,-480.0,0.00026117,2]
[388393611,1759151464104,-480.0,0.00026117,2]
[388393612,1759151464114,-512.03,0.00026117,2]
[388393613,1759151464124,-658.26,0.00026117,2]
[388393614,1759151464139,-480.0,0.00026117,2]
[388393615,1759151464148,-480.0,0.00026117,2]
[388393616,1759151464158,-592.48,0.00026117,2]
[388393617,1759151464168,-777.84,0.00026117,2]
[388393618,1759151464181,-781.3,0.00026117,2]
[388393619,1759151464191,-480.0,0.00026117,2]
[388393620,1759151464201,-863.34,0.00026117,2]
[388393621,1759151464213,-831.67,0.00026117,2]
[388393622,1759151464224,-480.0,0.00026117,2]
[388393623,1759151464234,-485.89147747,0.00026117,2]
[388393624,1759151464244,-760.03,0.00026117,2]
[388393625,1759151464256,-480.0,0.00026117,2]
[388393626,1759151464265,-366.34748546,0.00026117,2]
[388393627,1759151464275,-480.0,0.00026117,2]
[388393628,1759151464285,-1102.27,0.00026117,2]
[388393629,1759151464295,-521.07,0.00026117,2]
[388393630,1759151464305,-576.51810609,0.00026117,2]
[388393631,1759151464315,-936.34,0.00026117,2]
[388393632,1759151464325,-558.98687841,0.00026117,2]
[388393633,1759151464335,-480.0,0.00026117,2]
[388393634,1759151464345,-480.0,0.00026117,2]
[388393635,1759151464355,-484.23940866,0.00026117,2]
[388393636,1759151464365,-800.91,0.00026117,2]
[388393637,1759151464375,-480.0,0.00026117,2]
[388393638,1759151464385,-480.0,0.00026117,2]
[388393639,1759151464396,-480.0,0.00026117,2]
[388393640,1759151464406,-480.0,0.00026117,2]
[388393641,1759151464416,-480.0,0.00026117,2]
[388393642,1759151464427,-932.59,0.00026117,2]
[388393643,1759151464436,-480.0,0.00026117,2]
[388393644,1759151464446,-1182.72,0.00026117,2]
[388393645,1759151464456,-574.95,0.00026117,2]
[388393646,1759151464466,-1027.85,0.00026117,2]
[388393647,1759151464476,-480.0,0.00026117,2]
[388393648,1759151464486,-1501.78,0.00026117,2]
[388393649,1759151464497,-691.64,0.00026117,2]
[388393650,1759151464507,-480.0,0.00026117,2]
[388393651,1759151464516,-912.82,0.00026117,2]
[388393652,1759151464526,-513.02,0.00026117,2]
[388393653,1759151464536,-400.0,0.00026117,2]
[388393654,1759151464546,-535.63,0.00026117,2]
[388393655,1759151464557,-1176.56,0.00026117,2]
[388393656,1759151464566,-480.0,0.00026117,2]
[388393657,1759151464577,-480.0,0.00026117,2]
[388393658,1759151464587,-885.72,0.00026117,2]
[388393659,1759151464596,-480.0,0.00026117,2]
[388393660,1759151464606,-480.0,0.00026117,2]
[388393661,1759151464616,-480.0,0.00026117,2]
[388393662,1759151464625,-480.0,0.00026117,2]
[388393663,1759151464634,-480.0,0.00026117,2]
[388393664,1759151464643,-795.67,0.00026117,2]
[388393665,1759151464652,-480.0,0.00026117,2]
[388393666,1759151464661,-14103.58,0.00026117,2]
[388393667,1759151464670,-689.6,0.00026117,2]
[388393668,1759151464680,-480.0,0.00026117,2]
[388393669,1759151464689,-3544.99,0.00026117,2]
[388393670,1759151464698,-481.47267589,0.00026117,2]
[388393671,1759151464714,-480.0,0.00026117,2]
[388393672,1759151464728,-480.0,0.00026117,2]
[388393673,1759151464738,-4793.73,0.00026117,2]
[388393674,1759151464748,-480.0,0.00026117,2]
[388393675,1759151464758,-540.49,0.00026117,2]
[388393676,1759151464768,-1069.16,0.00026117,2]
[388393677,1759151464778,-777.01,0.00026117,2]
[388393678,1759151464788,-480.0,0.00026117,2]
[388393679,1759151464798,-480.0,0.00026117,2]
[388393680,1759151464808,-482.05150474,0.00026117,2]
[388393681,1759151464819,-750.45,0.00026117,2]
[388393682,1759151464829,-1063.15,0.00026117,2]
[388393683,1759151464839,-314.32028943,0.00026117,2]
[388393684,1759151464849,-480.0,0.00026117,2]
[388393685,1759151464860,-704.69,0.00026117,2]
[388393686,1759151464870,-480.0,0.00026117,2]
[388393687,1759151464880,-1475.13,0.00026117,2]
[388393688,1759151464892,-480.0,0.00026117,2]
[388393689,1759151464903,-480.0,0.00026117,2]
[388393690,1759151464915,-480.0,0.00026117,2]
[388393691,1759151464926,-480.0,0.00026117,2]
[388393692,1759151464937,-1460.07,0.00026117,2]
[388393693,1759151464948,-838.94,0.00026117,2]
[388393694,1759151464958,-3204.37,0.00026117,2]
[388393695,1759151464969,-481.35,0.00026117,2]
[388393696,1759151464980,-480.0,0.00026117,2]
[388393697,1759151464991,-1708.43,0.00026117,2]
[388393698,1759151465002,-480.0,0.00026117,2]
[388393699,1759151465013,-518.01,0.00026117,2]
[388393700,1759151465023,-480.0,0.00026117,2]
[388393701,1759151465035,-803.9,0.00026117,2]
[388393702,1759151465046,-2495.47,0.00026117,2]
[388393703,1759151465057,-1052.7,0.00026117,2]
[388393704,1759151465067,-217.00372313,0.00026117,2]
[388393705,1759151465078,-480.0,0.00026117,2]
[388393706,1759151465088,-3092.91,0.00026117,2]
[388393707,1759151465098,-1565.64,0.00026117,2]
[388393708,1759151465108,-480.0,0.00026117,2]
[388393709,1759151465119,-514.44,0.00026117,2]
[388393710,1759151465131,-480.0,0.00026117,2]
[388393711,1759151465142,-824.16,0.00026117,2]
[388393712,1759151465153,-1367.96,0.00026117,2]
[388393713,1759151465163,-480.0,0.00026117,2]
[388393714,1759151465175,-480.0,0.00026117,2]
[388393715,1759151465187,-1725.36,0.00026117,2]
[388393716,1759151465199,-689.28,0.00026117,2]
[388393717,1759151465210,-504.81,0.00026117,2]
[388393718,1759151465221,-3371.25,0.00026117,2]
[388393719,1759151465231,-480.0,0.00026117,2]
[388393720,1759151465242,-480.0,0.00026117,2]
[388393721,1759151465252,-480.0,0.00026117,2]
[388393722,1759151465263,-480.0,0.00026117,2]
[388393723,1759151465274,-7531.81,0.00026117,2]
[388393724,1759151465286,-909.16,0.00026117,2]
[388393725,1759151465296,-844.28,0.00026117,2]
[388393726,1759151465307,-890.13,0.00026117,2]
[388393727,1759151465317,-480.0,0.00026117,2]
[388393728,1759151465327,-1044.77,0.00026117,2]
[388393729,1759151465337,-677.82,0.00026117,2]
[388393730,1759151465347,-1117.33,0.00026117,2]
[388393731,1759151465357,-3496.53,0.00026117,2]
[388393732,1759151465368,-480.0,0.00026117,2]
[388393733,1759151465379,-973.3,0.00026117,2]
[388393734,1759151465388,-546.0,0.00026117,2]
[388393735,1759151465398,-480.0,0.00026117,2]
[388393736,1759151465408,-572.94,0.00026117,2]
[388393737,1759151465419,-1801.63,0.00026117,2]
[388393738,1759151465429,-480.0,0.00026117,2]
[388393739,1759151465439,-977.69,0.00026117,2]
[388393740,1759151465449,-480.0,0.00026117,2]
[388393741,1759151465460,-480.0,0.00026117,2]
[388393742,1759151465470,-1049.32,0.00026117,2]
[388393743,1759151465480,-480.0,0.00026117,2]
[388393744,1759151465491,-480.0,0.00026117,2]
[388393745,1759151465500,-805.75,0.00026117,2]
[388393746,1759151465511,-480.0,0.00026117,2]
[388393747,1759151465521,-480.0,0.00026117,2]
[388393748,1759151465531,-7854.75,0.00026117,2]
[388393749,1759151465542,-480.0,0.00026117,2]
[388393750,1759151465552,-669.95,0.00026117,2]
[388393751,1759151465563,-1494.42,0.00026117,2]
[388393752,1759151465575,-480.0,0.00026117,2]
[388393753,1759151465586,-480.0,0.00026117,2]
[388393754,1759151465598,-200.0,0.00026117,2]
[388393755,1759151465608,-545.1,0.00026117,2]
[388393756,1759151465617,-480.0,0.00026117,2]
[388393757,1759151465627,-4139.78,0.00026117,2]
[388393758,1759151465637,-480.0,0.00026117,2]
[388393759,1759151465646,-717.97,0.00026117,2]
[388393760,1759151465655,-480.0,0.00026117,2]
[388393761,1759151465665,-500.0,0.00026118,5]
[388393762,1759151465675,-1000.0,0.00026121,2]
[388393763,1759151465684,-1000.0,0.00026121,2]
[388393764,1759151465694,-1000.0,0.00026121,2]
[388393765,1759151465705,-329.02119291,0.00026121,2]
[388393766,1759151465715,-1000.0,0.00026121,2]
[388393767,1759151465726,-1000.0,0.00026121,2]
[388393768,1759151465736,-1000.0,0.00026121,2]
[388393769,1759151465747,-1000.0,0.00026121,2]
[388393770,1759151465758,-1000.0,0.00026121,2]
[388393771,1759151465769,-1000.0,0.00026121,2]
[388393772,1759151465781,-1000.0,0.00026121,2]
[388393773,1759151465793,-1008.7699855,0.00026121,2]
[388393774,1759151465806,-1000.0,0.00026121,2]
[388393775,1759151465817,-958.32854004,0.00026121,2]
[388393776,1759151465827,-1000.0,0.00026121,2]
[388393777,1759151465838,-1000.0,0.00026121,2]
[388393778,1759151465849,-1000.0,0.00026121,2]
[388393779,1759151465860,-1000.0,0.00026121,2]
[388393780,1759151465871,-1000.0,0.00026121,2]
[388393781,1759151465882,-1000.0,0.00026121,2]
[388393782,1759151465892,-1000.0,0.00026121,2]
[388393783,1759151465903,-170.64745108,0.00026137,30]
[388393784,1759151465913,-1165.65088206,0.00026171,2]
[388393785,1759151465924,-151.0,0.0002621,7]
[388393786,1759151465934,-151.0,0.0002621,7]
[388393787,1759151465944,-151.0,0.0002621,7]
[388393788,1759151465955,-480.0,0.00026215,2]
[388393789,1759151465965,-480.0,0.00026215,2]
[388393790,1759151465975,-773.39,0.00026215,2]
[388393791,1759151465986,-480.0,0.00026215,2]
[388393792,1759151465997,-480.0,0.00026215,2]
[388393793,1759151466007,-480.0,0.00026215,2]
[388393794,1759151466188,-480.0,0.00026215,2]
[388393795,1759151466199,-789.49,0.00026215,2]
[388393796,1759151466212,-579.82,0.00026215,2]
[388393797,1759151466223,-480.0,0.00026215,2]
[388393798,1759151466233,-480.0,0.00026215,2]
[388393799,1759151466243,-480.0,0.00026215,2]
[388393800,1759151466255,-622.65,0.00026215,2]
[388393801,1759151466268,-480.0,0.00026215,2]
[388393802,1759151466278,-682.22,0.00026215,2]
[388393803,1759151466290,-468.03272221,0.00026215,2]
[388393804,1759151466300,-731.15,0.00026215,2]
[388393805,1759151466311,-480.0,0.00026215,2]
[388393806,1759151466321,-480.0,0.00026215,2]
[388393807,1759151466332,-480.0,0.00026215,2]
[388393808,1759151466343,-480.0,0.00026215,2]
[388393809,1759151466355,-536.89,0.00026215,2]
[388393810,1759151466365,-6978.62,0.00026215,2]
[388393811,1759151466375,-1944.22,0.00026215,2]
[388393812,1759151466385,-200.0,0.00026215,2]
[388393813,1759151466395,-200.0,0.00026216,2]
[388393814,1759151466406,-1112.69,0.00026216,2]
[388393815,1759151466415,-771.23,0.00026216,2]
[388393816,1759151466425,-480.0,0.00026216,2]
[388393817,1759151466435,-548.78,0.00026216,2]
[388393818,1759151466444,-728.75,0.00026216,2]
[388393819,1759151466454,-480.0,0.00026216,2]
[388393820,1759151466463,-480.0,0.00026216,2]
[388393821,1759151466472,-151.0,0.00026216,7]
[388393822,1759151466483,-298.269547,0.00026216,7]
[388393823,1759151466492,-151.0,0.00026216,7]
[388393824,1759151466502,-252.157268,0.00026216,7]
[388393825,1759151466512,-151.0,0.00026216,7]
[388393826,1759151466521,-151.0,0.00026216,7]
[388393827,1759151466531,-151.0,0.00026216,7]
[388393828,1759151466541,-155.0371,0.00026216,7]
[388393829,1759151466551,-151.0,0.00026216,7]
[388393830,1759151466560,-151.0,0.00026216,7]
[388393831,1759151466570,-2497.25,0.00026216,2]
[388393832,1759151466580,-1769.7,0.00026216,2]
[388393833,1759151466590,-480.0,0.00026216,2]
[388393834,1759151466599,-1471.98,0.00026216,2]
[388393835,1759151466609,-500.0,0.00026216,2]
[388393836,1759151466619,-480.0,0.00026216,2]
[388393837,1759151466629,-489.83,0.00026216,2]
[388393838,1759151466639,-583.9,0.00026216,2]
[388393839,1759151466651,-585.35,0.00026216,2]
[388393840,1759151466670,-480.0,0.00026216,2]
[388393841,1759151466680,-3052.12,0.00026216,2]
[388393842,1759151466690,-1319.29,0.00026216,2]
[388393843,1759151466700,-480.0,0.00026216,2]
[388393844,1759151466710,-973.47,0.00026216,2]
[388393845,1759151466720,-480.0,0.00026216,2]
[388393846,1759151466730,-1053.45,0.00026216,2]
[388393847,1759151466739,-480.0,0.00026216,2]
[388393848,1759151466749,-567.77,0.00026216,2]
[388393849,1759151466760,-547.25,0.00026216,2]
[388393850,1759151466771,-933.94,0.00026216,2]
[388393851,1759151466782,-566.52,0.00026216,2]
[388393852,1759151466792,-953.78,0.00026216,2]
[388393853,1759151466802,-460.18967431,0.00026216,2]
[388393854,1759151466813,-2846.66,0.00026216,2]
[388393855,1759151466823,-887.91,0.00026216,2]
[388393856,1759151466833,-480.0,0.00026216,2]
[388393857,1759151466843,-543.41,0.00026216,2]
[388393858,1759151466854,-864.4,0.00026216,2]
[388393859,1759151466864,-919.55,0.00026216,2]
[388393860,1759151466874,-785.53,0.00026216,2]
[388393861,1759151466884,-779.05,0.00026216,2]
[388393862,1759151466894,-480.0,0.00026216,2]
[388393863,1759151466904,-954.8,0.00026216,2]
[388393864,1759151466914,-842.78,0.00026216,2]
[388393865,1759151466925,-1580.36,0.00026216,2]
[388393866,1759151466935,-530.15,0.00026216,2]
[388393867,1759151466945,-480.0,0.00026216,2]
[388393868,1759151466955,-480.0,0.00026216,2]
[388393869,1759151466966,-837.91,0.00026216,2]
[388393870,1759151466976,-2983.24,0.00026216,2]
[388393871,1759151466987,-860.7,0.00026216,2]
[388393872,1759151466998,-861.27,0.00026216,2]
[388393873,1759151467009,-505.9,0.00026216,2]
[388393874,1759151467019,-480.0,0.00026216,2]
[388393875,1759151467030,-480.0,0.00026216,2]
[388393876,1759151467042,-765.58,0.00026216,2]
[388393877,1759151467052,-1104.12,0.00026216,2]
[388393878,1759151467063,-2740.82,0.00026216,2]
[388393879,1759151467073,-668.18,0.00026216,2]
[388393880,1759151467083,-480.0,0.00026216,2]
[388393881,1759151467094,-733.36,0.00026216,2]
[388393882,1759151467105,-480.0,0.00026216,2]
[388393883,1759151467116,-251.0433777,0.00026217,2]
[388393884,1759151467126,-219.36670114,0.00026217,2]
[388393885,1759151467142,-480.0,0.00026217,2]
[388393886,1759151467154,-480.0,0.00026217,2]
[388393887,1759151467171,-480.0,0.00026217,2]
[388393888,1759151467188,-480.0,0.00026217,2]